bitfinex-derivatives/quotes_ETHF0:USTF0_20250123
["timestamp","ask_amount","ask_price","bid_price","bid_amount"]
[1737609683780,0.62295,3212.9,3212.8,44.0078]
[1737609685086,0.62294,3213.0,3212.8,44.63077]
[1737609685284,0.62603364,3213.1,3212.8,44.63077]
[1737609685590,0.00311364,3213.1,3212.9,0.62295]
[1737609685886,0.00311364,3213.1,3212.8,44.63076]
[1737609686084,2.45844166,3212.9,3212.5,0.5047]
[1737609686287,2.45844166,3212.9,3212.4,3.2078]
[1737609686288,2.45844166,3212.6,3212.4,3.2078]
[1737609686490,1.12173,3212.5,3212.4,3.2078]
[1737609687077,1.12173,3212.5,3212.2,40.8]
[1737609687282,3.08151166,3212.3,3212.2,40.8]
[1737609687587,3.13456009,3212.3,3212.2,40.8]
[1737609689184,3.08151166,3212.3,3212.2,40.8]
[1737609689487,3.13455954,3212.3,3212.2,40.8]
[1737609689892,3.08151166,3212.3,3212.2,40.8]
[1737609690490,3.13456344,3212.3,3212.2,40.8]
[1737609695193,0.67612178,3212.3,3212.2,40.8]
[1737609695389,0.62307,3212.3,3212.2,40.8]
[1737609696993,2.45844166,3212.6,3212.2,40.8]
[1737609697189,2.45844166,3212.6,3212.4,3.2078]
[1737609697382,2.45844166,3212.6,3212.5,0.529]
[1737609698593,3.08145166,3212.6,3212.5,0.529]
[1737609699689,2.45844166,3212.6,3212.5,0.529]
[1737609699994,3.08145166,3212.6,3212.5,0.529]
[1737609700699,3.08145166,3212.6,3212.5,1.0511]
[1737609702884,3.08145166,3212.6,3212.5,0.529]
[1737609703088,3.13454684,3212.6,3212.5,0.529]
[1737609703290,3.13454592,3212.6,3212.5,0.529]
[1737609703798,0.62303,3212.5,3212.4,3.2078]
[1737609703996,0.67612426,3212.5,3212.4,3.2078]
[1737609704294,0.62309,3212.2,3212.1,0.5133]
[1737609704497,3.13462592,3212.2,3212.1,0.5133]
[1737609704889,3.13460787,3212.2,3212.1,0.5133]
[1737609706096,0.05307621,3212.2,3212.1,0.5133]
[1737609706293,0.62308,3212.3,3212.1,0.5133]
[1737609706495,0.62306,3212.4,3212.1,0.5133]
[1737609706694,0.62305,3212.4,3212.1,0.5133]
[1737609706991,0.62309,3212.2,3212.1,0.5133]
[1737609707194,3.08153166,3212.2,3212.1,0.5133]
[1737609707400,3.13461651,3212.2,3212.1,0.5133]
[1737609707997,2.51152651,3212.2,3212.1,0.5133]
[1737609708203,0.62305,3212.4,3212.1,0.5133]
[1737609708696,2.45844166,3212.5,3212.2,40.8]
[1737609708900,0.62306,3212.4,3212.3,3.2078]
[1737609709599,0.62306,3212.4,3212.3,44.0078]
[1737609709800,2.45844166,3212.5,3212.3,44.0078]
[1737609710600,2.45844166,3212.5,3212.4,0.5178]
[1737609710900,2.95,3212.7,3212.4,0.5178]
[1737609711690,2.95,3212.7,3212.4,1.14085]
[1737609712095,2.95,3212.7,3212.4,0.5178]
[1737609712393,0.62294,3213.0,3212.6,0.623]
[1737609712600,0.62294,3213.0,3212.9,3.2078]
[1737609713597,0.62294,3213.0,3212.9,44.503]
[1737609716703,0.62294,3213.0,3212.9,3.703]
[1737609717099,0.67607256,3213.0,3212.9,3.2078]
[1737609718006,0.67607,3213.0,3212.9,3.2078]
[1737609718504,0.62294,3213.0,3212.9,3.2078]
[1737609718706,0.67607063,3213.0,3212.9,3.2078]
[1737609721516,0.67605257,3213.0,3212.9,3.2078]
[1737609723404,0.05311257,3213.0,3212.8,0.5081]
[1737609723712,0.67606123,3212.9,3212.8,0.5081]
[1737609723911,0.67606123,3212.9,3212.5,3.2078]
[1737609723912,0.62301,3212.6,3212.5,3.2078]
[1737609724111,3.08145166,3212.6,3212.5,3.2078]
[1737609725709,3.13454431,3212.6,3212.5,3.2078]
[1737609726510,3.13454143,3212.6,3212.5,3.2078]
[1737609726710,3.13453967,3212.6,3212.5,3.2078]
[1737609727508,3.13453967,3212.6,3212.2,0.4881]
[1737609727509,0.62307,3212.3,3212.2,0.4881]
[1737609727707,0.67615801,3212.3,3212.2,1.0007]
[1737609727903,3.13459967,3212.3,3212.2,0.4881]
[1737609728516,3.13461659,3212.3,3212.2,0.4881]
[1737609731810,3.13463406,3212.3,3212.2,0.4881]
[1737609737313,0.62309,3212.2,3212.1,40.8]
[1737609737520,0.6762124,3212.2,3212.1,40.8]
[1737609738611,0.67620185,3212.2,3212.1,40.8]
[1737609738811,0.67620185,3212.2,3212.1,41.322]
[1737609740319,0.67620842,3212.2,3212.1,41.322]
[1737609740515,0.05311842,3212.2,3212.1,41.322]
[1737609740822,2.95,3212.6,3212.1,41.322]
[1737609740823,2.45844166,3212.6,3212.1,41.322]
[1737609741026,0.67615977,3212.5,3212.1,41.322]
[1737609741226,0.05311977,3212.4,3212.1,41.322]
[1737609741524,0.62304,3212.5,3212.1,41.322]
[1737609741714,0.05311951,3212.4,3212.1,41.322]
[1737609741915,0.05311951,3212.4,3212.1,41.9451]
[1737609742112,3.08146166,3212.6,3212.3,3.2078]
[1737609742325,3.08146166,3212.6,3212.4,0.4894]
[1737609742828,0.62303,3212.5,3212.4,0.4894]
[1737609743831,0.62302,3212.6,3212.4,0.4894]
[1737609744326,0.62297,3212.8,3212.4,0.4894]
[1737609744518,2.45844166,3212.9,3212.4,0.4894]
[1737609744714,0.62303,3212.5,3212.4,0.4894]
[1737609747419,3.08147166,3212.5,3212.4,0.4894]
[1737609747620,0.62305,3212.4,3212.3,3.2078]
[1737609748029,1.19909812,3212.4,3212.3,3.2078]
[1737609748832,1.19909672,3212.4,3212.3,3.2078]
[1737609750226,0.57604672,3212.4,3212.1,40.8]
[1737609750421,3.08153166,3212.2,3212.1,40.8]
[1737609750626,0.62311,3212.1,3212.0,0.4924]
[1737609750826,0.67628264,3212.1,3212.0,0.4924]
[1737609751026,0.67628264,3212.1,3212.0,41.2924]
[1737609751827,0.05317264,3212.1,3212.0,41.7727]
[1737609752034,3.08154166,3212.2,3212.0,41.7727]
[1737609752532,3.08154166,3212.2,3212.1,0.5154]
[1737609753137,3.08154166,3212.2,3212.1,41.3154]
[1737609755434,2.45844166,3212.2,3212.1,41.3154]
[1737609755636,0.62305,3212.4,3212.1,41.3154]
[1737609756129,2.45844166,3212.2,3212.1,40.8]
[1737609756335,0.62322,3211.5,3211.4,0.0046705]
[1737609756530,2.45844166,3211.5,3211.0,3.2078]
[1737609756727,4.91688332,3211.1,3210.3,0.5239]
[1737609756929,4.76599,3211.3,3210.4,1.0194]
[1737609756930,2.45844166,3210.5,3210.4,1.0194]
[1737609757136,3.08186166,3210.5,3210.4,4.2272]
[1737609757328,3.08186166,3210.5,3210.4,45.0272]
[1737609759936,0.0046705,3210.8,3210.6,0.62339]
[1737609760137,0.0046705,3210.8,3210.4,45.65063]
[1737609760435,0.0046705,3210.8,3210.4,45.0272]
[1737609760638,0.0046705,3210.8,3210.5,0.6234]
[1737609761526,0.0046705,3210.8,3210.4,45.0272]
[1737609761731,0.62335,3210.9,3210.6,0.62339]
[1737609761931,0.62335,3210.9,3210.8,3.2078]
[1737609762337,0.62333,3211.0,3210.8,3.2078]
[1737609762538,0.62333,3211.0,3210.9,40.8]
[1737609765628,0.62333,3211.0,3210.9,41.2858]
[1737609765831,0.00311364,3211.3,3210.9,41.2858]
[1737609766034,0.00311364,3211.3,3211.2,3.2078]
[1737609766738,0.00311364,3211.3,3211.2,44.5185]
[1737609770345,0.62637364,3211.3,3211.2,44.5185]
[1737609773840,0.00311364,3211.3,3211.2,44.5185]
[1737609781939,0.62637364,3211.3,3211.2,44.5185]
[1737609782345,0.00311364,3211.3,3211.2,44.5185]
[1737609783437,0.62637364,3211.3,3211.2,44.5185]
[1737609784145,0.00311364,3211.3,3211.2,44.5185]
[1737609784342,0.00311364,3211.3,3211.2,3.2078]
[1737609784649,0.62637364,3211.3,3211.2,3.2078]
[1737609786343,0.62637364,3211.3,3211.2,44.0078]
[1737609788147,1.12567364,3211.3,3211.2,44.0078]
[1737609788750,1.63887364,3211.3,3211.2,44.0078]
[1737609791746,1.63887364,3211.3,3211.2,40.8]
[1737609792055,0.62334,3210.9,3210.8,3.2078]
[1737609792260,4.01680166,3210.9,3210.3,3.2078]
[1737609792452,2.45844166,3210.4,3210.3,3.2078]
[1737609792664,3.13511584,3210.4,3210.3,3.2078]
[1737609792959,3.13511584,3210.4,3210.3,44.0078]
[1737609793856,3.08188166,3210.4,3210.3,44.0078]
[1737609794257,3.13511804,3210.4,3210.3,44.0078]
[1737609795146,0.62348,3210.2,3210.1,0.0046705]
[1737609795456,0.62359,3209.6,3209.5,3.7355]
[1737609795652,3.08203166,3209.6,3209.5,3.7355]
[1737609795852,3.13528233,3209.6,3209.5,3.7355]
[1737609796052,3.13528233,3209.6,3209.5,44.5355]
[1737609797152,3.13528358,3209.6,3209.5,44.5355]
[1737609799555,3.13528601,3209.6,3209.5,44.5355]
[1737609799861,3.13528601,3209.6,3209.5,40.8]
[1737609800755,3.13528633,3209.6,3209.5,40.8]
[1737609802160,0.0532537,3209.6,3209.5,40.8]
[1737609802365,3.83134,3209.9,3209.5,40.8]
[1737609802566,0.67681754,3209.8,3209.6,1.0182]
[1737609802763,2.45844166,3210.2,3209.7,0.5202]
[1737609802961,0.62352,3210.0,3209.8,40.8]
[1737609803266,2.45844166,3210.2,3209.8,40.8]
[1737609803464,0.0532446,3210.1,3209.8,40.8]
[1737609803766,0.62353,3209.9,3209.8,40.8]
[1737609804363,2.45844166,3210.2,3209.8,40.8]
[1737609804661,0.62352,3210.0,3209.8,40.8]
[1737609804959,0.62353,3209.9,3209.8,40.8]
[1737609806266,3.08197166,3209.9,3209.8,40.8]
[1737609806662,3.13521818,3209.9,3209.8,40.8]
[1737609807463,3.08197166,3209.9,3209.8,40.8]
[1737609807869,3.13521916,3209.9,3209.8,40.8]
[1737609809167,3.13521791,3209.9,3209.8,40.8]
[1737609809470,3.13521817,3209.9,3209.8,40.8]
[1737609810664,0.67677651,3209.9,3209.8,40.8]
[1737609810859,0.62353,3209.9,3209.8,40.8]
[1737609812374,0.67677634,3209.9,3209.8,40.8]
[1737609812672,3.135218,3209.9,3209.8,40.8]
[1737609813064,0.62355,3209.8,3209.7,0.5202]
[1737609813267,0.67679634,3209.8,3209.7,0.5202]
[1737609813469,0.67679634,3209.8,3209.7,41.3202]
[1737609815780,0.67680036,3209.8,3209.7,41.3202]
[1737609818183,3.00325036,3209.8,3209.6,0.5085]
[1737609818383,0.67682036,3209.7,3209.6,0.5085]
[1737609820081,0.05325036,3209.7,3209.3,40.8]
[1737609820288,3.08207166,3209.4,3209.3,41.3091]
[1737609820486,3.13532202,3209.4,3209.3,41.3091]
[1737609820788,7.23209743,3209.4,3209.3,41.3091]
[1737609821289,7.23210227,3209.4,3209.3,41.3091]
[1737609821481,7.23210227,3209.4,3209.3,0.5091]
[1737609823986,8.03624814,3209.4,3209.3,0.5091]
[1737609824486,7.65466912,3209.4,3209.3,0.5091]
[1737609825189,7.23210257,3209.4,3209.3,0.5091]
[1737609827378,3.13533468,3209.4,3209.3,0.5091]
[1737609827889,3.13533468,3209.4,3209.3,41.3091]
[1737609829091,2.51170468,3209.4,3209.2,0.0046705]
[1737609829390,1.20001302,3209.3,3209.2,0.0046705]
[1737609829582,1.20001302,3209.3,3209.2,40.8046705]
[1737609831392,0.67691302,3209.3,3209.2,40.8046705]
[1737609833592,0.67691119,3209.3,3209.2,40.8046705]
[1737609834687,0.05326119,3209.3,3209.2,40.8046705]
[1737609834986,2.45844166,3209.4,3209.2,40.8046705]
[1737609834987,0.62363,3209.4,3209.2,44.0124705]
[1737609835289,2.46311216,3209.7,3209.2,44.0124705]
[1737609835488,0.62364,3209.4,3209.2,44.0124705]
[1737609837191,0.62365,3209.4,3209.2,44.0124705]
[1737609837888,0.62365,3209.3,3209.2,44.0124705]
[1737609839090,2.45844166,3209.4,3209.2,44.0124705]
[1737609839293,0.62365,3209.3,3209.2,44.0124705]
[1737609840884,0.62365,3209.3,3209.2,40.8046705]
[1737609842691,0.67690731,3209.3,3209.2,40.8046705]
[1737609844496,0.67691244,3209.3,3209.2,0.0046705]
[1737609844698,0.67691244,3209.3,3209.0,0.5214]
[1737609844699,0.05326244,3209.3,3209.0,0.5214]
[1737609844989,6.28993166,3209.1,3209.0,0.5214]
[1737609845195,7.14782959,3209.1,3209.0,0.5214]
[1737609845399,7.66852959,3209.1,3209.0,0.5214]
[1737609846298,11.76805121,3209.1,3209.0,0.5214]
[1737609846498,11.76805121,3209.1,3209.0,0.5167295]
[1737609847001,0.62373,3208.9,3208.8,40.8]
[1737609847299,0.67699244,3208.9,3208.8,40.8]
[1737609847495,0.62375,3208.8,3208.7,0.0046705]
[1737609847800,7.92620882,3208.8,3208.7,5e-07]
[1737609848093,12.92620882,3208.8,3208.7,5e-07]
[1737609850997,0.6239,3208.0,3207.9,0.5288]
[1737609851196,3.1356041,3208.0,3207.9,0.5288]
[1737609851695,3.1356041,3208.0,3206.8,3.2078]
[1737609851696,0.62411,3207.0,3206.8,3.2078]
[1737609851899,0.62411,3207.0,3206.9,41.8181]
[1737609853297,0.0046705,3207.3,3206.9,41.8181]
[1737609853601,6.29021166,3207.7,3207.1,0.62407]
[1737609853795,0.62394,3207.9,3207.3,0.62404]
[1737609853995,2.45844166,3208.0,3207.2,3.2078]
[1737609853996,0.05328396,3207.8,3207.2,3.2078]
[1737609854303,3.13570803,3207.7,3207.2,3.2078]
[1737609854501,3.08242166,3207.7,3207.2,3.2078]
[1737609854695,2.45844166,3207.7,3207.2,3.83185]
[1737609855002,2.45844166,3207.7,3207.2,3.2078]
[1737609855402,2.45844166,3207.7,3207.2,3.83185]
[1737609856099,3.08241166,3207.7,3207.2,3.83185]
[1737609856499,3.08241166,3207.7,3207.2,3.2078]
[1737609856500,0.62399,3207.6,3207.2,3.2078]
[1737609856702,0.62398,3207.6,3207.2,3.2078]
[1737609856901,0.62402,3207.4,3207.3,0.5177]
[1737609857306,0.62402,3207.4,3207.3,41.3177]
[1737609859306,3.08246166,3207.4,3207.3,41.3177]
[1737609859702,0.67731093,3207.4,3207.3,41.3177]
[1737609859911,2.45844166,3207.7,3207.3,41.3177]
[1737609860106,0.0046705,3207.8,3207.3,41.3177]
[1737609860305,0.05328504,3207.7,3207.4,0.5223]
[1737609860505,0.62399,3207.6,3207.5,0.5145]
[1737609861106,0.0046705,3207.8,3207.5,0.5145]
[1737609861805,3.83169,3208.1,3207.6,0.62398]
[1737609862006,2.45844166,3208.3,3207.6,3.2078]
[1737609862007,0.62391,3208.0,3207.6,3.2078]
[1737609862208,0.62393,3207.9,3207.6,3.2078]
[1737609862803,0.62391,3208.0,3207.6,3.2078]
[1737609864211,0.0046705,3208.1,3207.8,0.62393]
[1737609864510,0.6285705,3208.1,3207.9,0.5083]
[1737609864708,0.6285705,3208.1,3208.0,40.8]
[1737609864908,0.6285705,3208.1,3208.0,41.2808]
[1737609865104,0.0046705,3208.1,3208.0,41.2808]
[1737609865509,0.68182663,3208.1,3208.0,41.2808]
[1737609865812,3.63182663,3208.1,3208.0,0.4808]
[1737609866013,7.77647722,3208.1,3208.0,0.4808]
[1737609866210,7.15259722,3208.1,3207.6,44.5161]
[1737609866405,0.62394,3207.8,3207.7,0.4808]
[1737609866710,0.67721613,3207.8,3207.7,0.4808]
[1737609866908,0.67721613,3207.8,3207.7,41.2808]
[1737609868015,0.67721613,3207.8,3207.6,3.7161]
[1737609868016,2.51171779,3207.8,3207.6,3.2078]
[1737609868214,1.17313613,3207.7,3207.6,3.2078]
[1737609868609,1.17313613,3207.7,3207.6,44.0078]
[1737609868810,1.17313613,3207.7,3207.6,3.2078]
[1737609869516,0.67723613,3207.7,3207.6,3.2078]
[1737609870823,0.67724765,3207.7,3207.6,3.2078]
[1737609871909,0.67724765,3207.7,3207.3,0.9971]
[1737609871910,0.62402,3207.4,3207.3,0.9971]
[1737609872110,3.13574931,3207.4,3207.3,0.9971]
[1737609872315,3.13574931,3207.4,3207.3,41.7971]
[1737609872526,3.13575307,3207.4,3207.3,41.7971]
[1737609874218,3.13575502,3207.4,3207.3,41.7971]
[1737609876519,0.05329336,3207.4,3207.3,41.7971]
[1737609876722,0.624,3207.5,3207.3,41.7971]
[1737609876915,0.62399,3207.6,3207.3,41.7971]
[1737609877121,2.45844166,3207.7,3207.3,41.7971]
[1737609877321,0.62401,3207.5,3207.3,41.7971]
[1737609878017,2.45844166,3207.7,3207.3,41.7971]
[1737609878327,0.62402,3207.4,3207.3,41.7971]
[1737609883127,0.62401,3207.5,3207.3,41.7971]
[1737609884026,2.45844166,3207.7,3207.3,41.7971]
[1737609884226,0.62402,3207.4,3207.3,41.7971]
[1737609884430,2.45844166,3207.7,3207.3,41.7971]
[1737609884624,0.62401,3207.5,3207.3,41.7971]
[1737609884824,0.62402,3207.4,3207.3,41.7971]
[1737609885327,0.67731002,3207.4,3207.3,41.7971]
[1737609885627,0.62402,3207.4,3207.3,41.7971]
[1737609887126,3.08246166,3207.4,3207.3,41.7971]
[1737609887626,0.62402,3207.4,3207.3,41.7971]
[1737609892330,0.62399,3207.6,3207.3,41.7971]
[1737609892637,5.66624166,3208.0,3207.3,41.7971]
[1737609892838,0.62399,3207.6,3207.3,41.7971]
[1737609893038,0.62399,3207.6,3207.3,42.42114]
[1737609893335,0.62397,3207.7,3207.3,42.42113]
[1737609893541,0.62399,3207.6,3207.3,41.7971]
[1737609895329,0.62399,3207.6,3207.5,3.2078]
[1737609895530,0.62397,3207.7,3207.5,3.2078]
[1737609895739,5.66624166,3208.0,3207.5,3.2078]
[1737609895927,0.62398,3207.6,3207.5,3.2078]
[1737609896236,0.62398,3207.6,3207.3,0.9971]
[1737609896542,0.62398,3207.6,3207.5,40.8]
[1737609900637,0.62397,3207.7,3207.5,40.8]
[1737609900832,0.62392,3207.9,3207.5,40.8]
[1737609901031,0.62398,3207.6,3207.5,40.8]
[1737609904737,0.62398,3207.6,3207.3,0.9971]
[1737609904738,0.62402,3207.4,3207.3,0.9971]
[1737609905241,0.62402,3207.4,3207.3,41.7971]
[1737609909445,0.6239,3208.0,3207.6,0.62397]
[1737609909742,0.0046705,3208.1,3207.9,0.62392]
[1737609910045,0.0046705,3208.1,3207.8,3.2078]
[1737609910346,0.62392,3207.9,3207.8,3.7288]
[1737609910546,0.62392,3207.9,3207.8,0.521]
[1737609910741,0.62402,3207.4,3207.3,44.0078]
[1737609911041,0.62402,3207.4,3207.3,3.2078]
[1737609911547,0.62402,3207.4,3207.3,44.0078]
[1737609913945,3.2078,3207.8,3207.3,44.0078]
[1737609914145,0.62397,3207.7,3207.4,0.62401]
[1737609914339,3.2078,3207.8,3207.3,44.63183]
[1737609914541,0.62398,3207.7,3207.3,44.63183]
[1737609915037,3.83175,3207.8,3207.3,44.0078]
[1737609915238,2.97184166,3208.3,3207.3,44.0078]
[1737609915239,2.45844166,3208.3,3207.7,3.2078]
[1737609915437,0.62388,3208.2,3207.8,2.12273]
[1737609915845,0.62388,3208.2,3207.9,0.62392]
[1737609916054,0.62388,3208.2,3207.8,2.12272]
[1737609916247,0.62388,3208.2,3207.9,0.62392]
[1737609916549,2.45844166,3208.6,3207.8,1.4988]
[1737609916747,0.62388,3208.2,3207.9,0.62392]
[1737609916944,1.0148,3208.8,3208.0,0.6239]
[1737609917247,0.62383,3208.4,3208.0,41.4239]
[1737609917440,0.5127,3208.8,3208.0,41.4239]
[1737609917645,0.62379,3208.6,3208.3,0.62383]
[1737609917845,0.62379,3208.6,3208.4,0.9826]
[1737609918041,15.88969465,3208.9,3208.4,0.9826]
[1737609918246,0.62381,3208.5,3208.4,0.9826]
[1737609919456,0.62381,3208.5,3208.4,0.4789]
[1737609919639,1.18318096,3208.5,3208.4,0.4789]
[1737609921652,0.62386,3208.2,3208.1,0.0046705]
[1737609921947,0.62401,3207.5,3207.3,4.7562]
[1737609922342,0.62401,3207.5,3207.4,40.8]
[1737609922544,2.45844166,3207.7,3207.4,40.8]
[1737609922545,0.62398,3207.7,3207.4,40.8]
[1737609922744,0.62396,3207.7,3207.4,40.8]
[1737609924444,0.62395,3207.8,3207.4,41.42402]
[1737609924640,5.66624166,3208.3,3207.4,40.8]
[1737609924841,0.62391,3208.0,3207.8,3.2078]
[1737609925039,5.66624166,3208.3,3207.8,3.2078]
[1737609925246,2.45844166,3208.0,3207.4,44.0078]
[1737609925445,0.62397,3207.7,3207.5,0.5003]
[1737609926751,0.62398,3207.6,3207.5,0.5003]
[1737609927652,0.624,3207.5,3207.4,44.0078]
[1737609927856,0.624,3207.5,3207.4,44.5332]
[1737609928249,0.624,3207.5,3207.4,44.0078]
[1737609928443,0.624,3207.5,3207.4,40.8]
[1737609929359,0.67728794,3207.5,3207.4,40.8]
[1737609930951,0.67728982,3207.5,3207.4,40.8]
[1737609933258,0.67728875,3207.5,3207.4,40.8]
[1737609933456,0.67728975,3207.5,3207.4,40.8]
[1737609933856,0.67728978,3207.5,3207.4,40.8]
[1737609935860,0.624,3207.5,3207.4,40.8]
[1737609936157,0.67729102,3207.5,3207.4,40.8]
[1737609937661,0.67729383,3207.5,3207.4,40.8]
[1737609939354,0.67729228,3207.5,3207.4,40.8]
[1737609944362,0.624,3207.5,3207.4,41.3123]
[1737609944561,0.67729036,3207.5,3207.4,41.3123]
[1737609945663,0.67729036,3207.5,3207.4,41.842]
[1737609946865,0.67729138,3207.5,3207.4,41.842]
[1737609951070,0.624,3207.5,3207.4,41.842]
[1737609951269,0.6772895,3207.5,3207.4,41.842]
[1737609954673,0.0532895,3207.5,3207.4,41.842]
[1737609954873,0.62395,3207.8,3207.4,41.842]
[1737609955070,0.05328319,3207.7,3207.4,41.842]
[1737609955869,0.62395,3207.8,3207.4,41.842]
[1737609956271,0.0532847,3207.7,3207.4,41.842]
[1737609957067,0.62395,3207.8,3207.4,41.842]
[1737609957370,3.2078,3207.9,3207.4,41.842]
[1737609957569,3.2078,3207.9,3207.5,0.624]
[1737609958472,3.83173,3207.9,3207.5,0.624]
[1737609959170,3.08236166,3208.0,3207.6,0.62397]
[1737609959478,0.6239,3208.1,3207.6,0.62397]
[1737609959678,0.62392,3208.0,3207.6,0.62397]
[1737609960782,0.62393,3207.9,3207.5,3.83179]
[1737609961979,0.62394,3207.8,3207.5,3.83179]
[1737609962382,0.62393,3207.9,3207.5,3.83179]
[1737609963476,2.45844166,3208.3,3207.5,3.83179]
[1737609963782,0.62395,3207.8,3207.5,3.83179]
[1737609964568,0.62393,3207.9,3207.5,3.2078]
[1737609964781,0.62393,3207.9,3207.6,0.62398]
[1737609965080,2.45844166,3208.3,3207.7,0.62395]
[1737609965280,0.62393,3207.9,3207.6,0.62397]
[1737609965674,0.62393,3207.9,3207.5,3.2078]
[1737609965880,0.62393,3207.9,3207.7,0.62396]
[1737609966086,2.45844166,3208.3,3207.5,3.2078]
[1737609966286,0.62389,3208.1,3207.8,0.62394]
[1737609966582,0.6239,3208.0,3207.9,40.8]
[1737609967377,2.45844166,3208.3,3207.9,40.8]
[1737609967578,0.67714483,3208.2,3208.0,1.0044]
[1737609967781,1.16758556,3208.2,3208.1,0.62388]
[1737609967981,1.16758556,3208.2,3208.0,1.62829]
[1737609968485,1.79142556,3208.4,3208.0,1.62829]
[1737609968985,1.16758556,3208.4,3208.0,1.0044]
[1737609969179,1.16758556,3208.2,3208.0,1.62829]
[1737609969373,1.16758556,3208.2,3208.0,1.0044]
[1737609969584,1.16758556,3208.2,3208.1,0.62388]
[1737609969788,0.62383,3208.4,3208.0,1.62829]
[1737609970286,0.62383,3208.4,3208.1,0.62388]
[1737609971576,2.46638639,3208.5,3208.1,0.62388]
[1737609972481,0.05327119,3208.4,3208.1,0.62388]
[1737609972694,0.62383,3208.4,3208.0,1.0044]
[1737609972886,0.62383,3208.4,3208.0,1.62829]
[1737609975186,0.62383,3208.4,3208.1,0.62388]
[1737609976380,0.62385,3208.3,3208.0,1.62829]
[1737609976580,0.62383,3208.4,3208.1,0.62388]
[1737609979379,2.96180003,3208.8,3208.0,1.0044]
[1737609979582,0.62381,3208.5,3208.2,0.62386]
[1737609980691,0.62381,3208.5,3208.3,40.8]
[1737609980988,0.62379,3208.6,3208.3,40.8]
[1737609981190,0.05326932,3208.7,3208.3,40.8]
[1737609981389,0.62381,3208.5,3208.3,40.8]
[1737609982793,0.62382,3208.4,3208.3,40.8]
[1737609986990,0.67709376,3208.4,3208.3,40.8]
[1737609987393,1.16509376,3208.4,3208.3,40.8]
[1737609987690,1.66999376,3208.4,3208.3,40.8]
[1737609988495,0.05326932,3208.7,3208.3,40.8]
[1737609988691,0.62382,3208.4,3208.3,40.8]
[1737609993598,1.79123838,3208.5,3208.3,40.8]
[1737609994402,0.62382,3208.5,3208.4,0.4892]
[1737609994602,1.79123838,3208.5,3208.4,0.4892]
[1737609994905,0.62382,3208.4,3208.3,40.8]
[1737609995290,1.13962,3208.4,3208.3,40.8]
[1737610000602,5.56907289,3208.4,3207.9,3.2078]
[1737610000909,0.62399,3207.6,3207.5,3.2078]
[1737610001205,1.79140838,3207.6,3207.5,44.0078]
[1737610001503,1.79140838,3207.6,3207.5,40.8]
[1737610001703,1.84469254,3207.6,3207.5,40.8]
[1737610003100,1.84469774,3207.6,3207.5,40.8]
[1737610004906,1.22070774,3207.6,3207.5,40.8]
[1737610005097,1.22070774,3207.6,3207.5,41.3031]
[1737610005301,1.16741838,3207.6,3207.5,41.3031]
[1737610005507,1.16741838,3207.8,3207.5,41.3031]
[1737610005806,0.62393,3207.9,3207.6,0.517]
[1737610006007,0.62391,3208.0,3207.6,0.517]
[1737610006307,0.67721037,3207.9,3207.6,0.517]
[1737610006503,0.62393,3207.9,3207.6,0.517]
[1737610006699,0.62393,3207.9,3207.7,40.8]
[1737610008507,0.05328265,3207.8,3207.7,40.8]
[1737610008701,0.62393,3207.9,3207.7,40.8]
[1737610009302,0.67722213,3207.8,3207.7,40.8]
[1737610011111,0.62394,3207.8,3207.7,40.8]
[1737610011307,0.6772242,3207.8,3207.7,40.8]
[1737610012711,0.62393,3207.9,3207.7,40.8]
[1737610013016,3.2078,3208.1,3207.7,40.8]
[1737610013315,0.62393,3207.9,3207.7,40.8]
[1737610013515,0.62395,3207.8,3207.5,0.5031]
[1737610013709,0.62395,3207.8,3207.6,0.5147]
[1737610013910,0.62393,3207.9,3207.6,0.5147]
[1737610014211,0.62393,3207.9,3207.7,40.8]
[1737610014409,3.2078,3208.1,3207.7,40.8]
[1737610014410,0.62391,3208.0,3207.7,40.8]
[1737610014911,0.62393,3207.9,3207.7,40.8]
[1737610015107,3.2078,3208.1,3207.7,40.8]
[1737610015303,0.62392,3207.9,3207.7,40.8]
[1737610015503,3.2078,3208.1,3207.7,40.8]
[1737610015708,0.05327954,3208.0,3207.7,40.8]
[1737610016110,0.05327954,3208.0,3207.7,41.42396]
[1737610016916,0.05327954,3208.0,3207.7,40.8]
[1737610017616,0.05327954,3208.0,3207.7,41.42395]
[1737610018016,3.2078,3208.1,3207.7,40.8]
[1737610018218,0.05327723,3208.0,3207.7,40.8]
[1737610018514,0.6239,3208.1,3207.7,40.8]
[1737610019002,0.6239,3208.1,3207.7,41.42396]
[1737610019206,0.05327683,3208.0,3207.7,41.42396]
[1737610019419,0.05327683,3208.0,3207.7,40.8]
[1737610019609,0.62389,3208.1,3207.7,40.8]
[1737610020019,0.05327658,3208.0,3207.7,40.8]
[1737610020317,0.6239,3208.1,3207.7,40.8]
[1737610020512,0.05327693,3208.0,3207.7,40.8]
[1737610020719,0.6239,3208.1,3207.7,40.8]
[1737610021711,0.62384,3208.4,3208.0,3.2078]
[1737610022019,3.2078,3208.6,3208.1,1.15297]
[1737610022218,3.2078,3208.6,3208.3,0.62383]
[1737610022407,3.2078,3208.6,3208.2,41.3203]
[1737610022721,3.2078,3208.6,3208.3,0.62383]
[1737610022915,3.2078,3208.6,3208.4,0.62382]
[1737610023219,0.05326932,3208.7,3208.5,0.62381]
[1737610023416,0.05326932,3208.7,3208.6,0.5194]
[1737610023720,0.00311364,3208.8,3208.7,0.62377]
[1737610024311,0.00311364,3208.8,3208.7,40.8]
[1737610024512,3.0938653,3208.8,3208.7,40.8]
[1737610024714,3.14672072,3208.8,3208.7,40.8]